[Event "GrandPrix_29.05"]
[Site "Chess.com"]
[Date "2020.05.29"]
[Round "2"]
[White "Funo09"]
[Black "CherepZhenya"]
[Result "1-0"]
[WhiteElo "2579"]
[BlackElo "2192"]
[TimeControl "600+2"]
[EndTime "9:51:31 PDT"]
[Termination "Funo09 won by checkmate"]

1. e4 {[%clk 0:10:01.9]} 1... c5 {[%clk 0:09:55.6]} 2. Nc3 {[%clk 0:10:02.7]}
2... Nc6 {[%clk 0:09:55.6]} 3. Bb5 {[%clk 0:10:04.2]} 3... Nd4 {[%clk 0:09:54]}
4. Bc4 {[%clk 0:10:05.7]} 4... g6 {[%clk 0:09:52.2]} 5. Nf3 {[%clk 0:10:06.9]}
5... Bg7 {[%clk 0:09:52.9]} 6. Nxd4 {[%clk 0:10:08.3]} 6... cxd4 {[%clk
0:09:53.4]} 7. Qf3 {[%clk 0:10:09.8]} 7... Nh6 {[%clk 0:09:53.9]} 8. Ne2 {[%clk
0:10:11]} 8... O-O {[%clk 0:09:48]} 9. d3 {[%clk 0:10:09.1]} 9... Ng4 {[%clk
0:09:47.5]} 10. Bb3 {[%clk 0:10:09.5]} 10... Ne5 {[%clk 0:09:27.6]} 11. Qg3
{[%clk 0:10:10.3]} 11... Nc6 {[%clk 0:09:26.7]} 12. O-O {[%clk 0:10:08.1]} 12...
a5 {[%clk 0:09:26.4]} 13. a4 {[%clk 0:10:04]} 13... d6 {[%clk 0:09:26.3]} 14. h4
{[%clk 0:09:28.1]} 14... Be6 {[%clk 0:08:50.4]} 15. Bxe6 {[%clk 0:09:10.1]}
15... fxe6 {[%clk 0:08:50.4]} 16. h5 {[%clk 0:08:15]} 16... Qe8 {[%clk
0:08:45.7]} 17. Qg4 {[%clk 0:07:51.1]} 17... Qf7 {[%clk 0:08:36.3]} 18. Nf4
{[%clk 0:07:38.2]} 18... gxh5 {[%clk 0:08:11]} 19. Nxh5 {[%clk 0:07:19.7]} 19...
Ne5 {[%clk 0:07:54.8]} 20. Qh3 {[%clk 0:07:11.1]} 20... Kh8 {[%clk 0:06:53.9]}
21. Nxg7 {[%clk 0:06:55.2]} 21... Qxg7 {[%clk 0:06:46.9]} 22. Bh6 {[%clk
0:06:56]} 22... Qg6 {[%clk 0:06:23.8]} 23. Bxf8 {[%clk 0:06:56.6]} 23... Rxf8
{[%clk 0:06:23.6]} 24. f4 {[%clk 0:04:50.9]} 24... Ng4 {[%clk 0:06:19.4]} 25. c3
{[%clk 0:04:27.5]} 25... Ne3 {[%clk 0:05:50.1]} 26. Rf2 {[%clk 0:04:11.8]} 26...
Qg7 {[%clk 0:05:35.3]} 27. Re1 {[%clk 0:03:40.6]} 27... e5 {[%clk 0:05:16]} 28.
fxe5 {[%clk 0:03:10.3]} 28... Rxf2 {[%clk 0:05:13.4]} 29. Kxf2 {[%clk
0:03:10.3]} 29... Ng4+ {[%clk 0:04:57.1]} 30. Kg1 {[%clk 0:03:06.7]} 30... dxe5
{[%clk 0:04:52.8]} 31. cxd4 {[%clk 0:03:06.6]} 31... exd4 {[%clk 0:04:52.9]} 32.
Qh5 {[%clk 0:02:40.9]} 32... Ne5 {[%clk 0:04:31.8]} 33. Rc1 {[%clk 0:01:48.5]}
33... h6 {[%clk 0:04:18]} 34. Rc8+ {[%clk 0:01:41.5]} 34... Kh7 {[%clk 0:04:18]}
35. Qf5+ {[%clk 0:01:42.7]} 35... Ng6 {[%clk 0:04:15.7]} 36. Rb8 {[%clk
0:01:35.9]} 36... e6 {[%clk 0:03:49.4]} 37. Qxe6 {[%clk 0:01:36.4]} 37... Qc7
{[%clk 0:03:48.5]} 38. Qg8# {[%clk 0:01:36]} 1-0

[Event "GrandPrix_29.05"]
[Site "Chess.com"]
[Date "2020.05.29"]
[Round "2"]
[White "troisi"]
[Black "vladislavkovalev"]
[Result "0-1"]
[WhiteElo "1489"]
[BlackElo "2678"]
[TimeControl "600+2"]
[EndTime "9:51:34 PDT"]
[Termination "vladislavkovalev won on time"]

1. e4 {[%clk 0:09:57.3]} 1... e5 {[%clk 0:10:01]} 2. Nf3 {[%clk 0:09:43.2]} 2...
Nc6 {[%clk 0:10:00.5]} 3. Bb5 {[%clk 0:08:56.3]} 3... a6 {[%clk 0:09:59.8]} 4.
Ba4 {[%clk 0:08:57]} 4... Nf6 {[%clk 0:10:00.9]} 5. O-O {[%clk 0:08:57.7]} 5...
Be7 {[%clk 0:10:02.2]} 6. Re1 {[%clk 0:08:51.4]} 6... b5 {[%clk 0:10:03.2]} 7.
Bb3 {[%clk 0:08:52]} 7... d6 {[%clk 0:10:04.6]} 8. c3 {[%clk 0:08:52.7]} 8...
O-O {[%clk 0:10:05.6]} 9. h3 {[%clk 0:08:50.7]} 9... Nb8 {[%clk 0:10:06.8]} 10.
d4 {[%clk 0:08:51.1]} 10... Nbd7 {[%clk 0:10:08.3]} 11. a4 {[%clk 0:08:52.3]}
11... Bb7 {[%clk 0:10:04.8]} 12. Nbd2 {[%clk 0:08:44.7]} 12... c5 {[%clk
0:10:05.8]} 13. Qe2 {[%clk 0:08:36.5]} 13... c4 {[%clk 0:09:32.4]} 14. Bc2
{[%clk 0:08:34.5]} 14... Re8 {[%clk 0:09:34]} 15. b4 {[%clk 0:08:14.8]} 15...
Bf8 {[%clk 0:09:25.8]} 16. d5 {[%clk 0:07:19.4]} 16... g6 {[%clk 0:09:25.7]} 17.
Nf1 {[%clk 0:07:17.2]} 17... Nh5 {[%clk 0:09:25.8]} 18. a5 {[%clk 0:07:10.8]}
18... Nf4 {[%clk 0:09:16.5]} 19. Qd1 {[%clk 0:06:09.9]} 19... Nf6 {[%clk
0:09:01.6]} 20. Be3 {[%clk 0:05:41.1]} 20... Bc8 {[%clk 0:08:58.9]} 21. Qd2
{[%clk 0:05:37.6]} 21... N6h5 {[%clk 0:08:43.8]} 22. Ng3 {[%clk 0:05:34.4]}
22... Qf6 {[%clk 0:08:25.6]} 23. Nh2 {[%clk 0:05:06.2]} 23... Kh8 {[%clk
0:07:26.5]} 24. Kh1 {[%clk 0:03:46.1]} 24... Qg5 {[%clk 0:06:45.4]} 25. Rf1
{[%clk 0:00:37.9]} 25... Bd7 {[%clk 0:06:18.7]} 26. Rae1 {[%clk 0:00:35.4]}
26... f5 {[%clk 0:06:00.3]} 27. Nf3 {[%clk 0:00:05]} 27... Nxg3+ {[%clk
0:05:53.5]} 28. fxg3 {[%clk 0:00:06.9]} 28... Qxg3 {[%clk 0:05:55.2]} 29. Ng1
{[%clk 0:00:05.8]} 29... Qh4 {[%clk 0:05:28.7]} 30. Bxf4 {[%clk 0:00:05]} 30...
exf4 {[%clk 0:05:28.5]} 31. exf5 {[%clk 0:00:05.8]} 31... gxf5 {[%clk
0:05:06.3]} 32. Nf3 {[%clk 0:00:05]} 32... Qf6 {[%clk 0:05:07.7]} 33. Rc1 {[%clk
0:00:03.1]} 33... Re3 {[%clk 0:05:04.9]} 0-1

[Event "GrandPrix_29.05"]
[Site "Chess.com"]
[Date "2020.05.29"]
[Round "2"]
[White "jncool68"]
[Black "VolodymyrMolyboha"]
[Result "0-1"]
[WhiteElo "1977"]
[BlackElo "2307"]
[TimeControl "600+2"]
[EndTime "9:51:37 PDT"]
[Termination "VolodymyrMolyboha won by resignation"]

1. e4 {[%clk 0:10:01.9]} 1... g6 {[%clk 0:10:00.6]} 2. d4 {[%clk 0:10:01.8]}
2... Bg7 {[%clk 0:10:01]} 3. Nc3 {[%clk 0:10:02]} 3... d6 {[%clk 0:10:01.4]} 4.
Be3 {[%clk 0:10:01.9]} 4... a6 {[%clk 0:10:01.8]} 5. Nf3 {[%clk 0:10:02.2]} 5...
b5 {[%clk 0:10:01.2]} 6. Bd3 {[%clk 0:10:02.6]} 6... Bb7 {[%clk 0:10:01.6]} 7.
e5 {[%clk 0:10:03.2]} 7... e6 {[%clk 0:09:57.3]} 8. exd6 {[%clk 0:09:57.2]} 8...
cxd6 {[%clk 0:09:57.4]} 9. Qd2 {[%clk 0:09:48]} 9... Bxf3 {[%clk 0:09:23.4]} 10.
gxf3 {[%clk 0:09:48.5]} 10... d5 {[%clk 0:09:22.9]} 11. a4 {[%clk 0:09:47.4]}
11... b4 {[%clk 0:09:21.6]} 12. Ne2 {[%clk 0:09:47.7]} 12... Nc6 {[%clk
0:09:18.5]} 13. c3 {[%clk 0:09:40.4]} 13... bxc3 {[%clk 0:09:13.2]} 14. Qxc3
{[%clk 0:09:40.8]} 14... Nge7 {[%clk 0:09:12.7]} 15. b4 {[%clk 0:09:28.7]} 15...
O-O {[%clk 0:09:03.3]} 16. b5 {[%clk 0:09:29.3]} 16... axb5 {[%clk 0:09:03.7]}
17. axb5 {[%clk 0:09:31.2]} 17... Rxa1+ {[%clk 0:09:03.9]} 18. Qxa1 {[%clk
0:09:31.9]} 18... Nb4 {[%clk 0:08:56]} 19. Bb1 {[%clk 0:09:25.2]} 19... Qb6
{[%clk 0:07:50.9]} 20. Qa4 {[%clk 0:09:22]} 20... Nbc6 {[%clk 0:07:45.8]} 21.
O-O {[%clk 0:09:20.3]} 21... Na5 {[%clk 0:07:40.7]} 22. Bd3 {[%clk 0:09:15]}
22... Rc8 {[%clk 0:06:54.6]} 23. Ra1 {[%clk 0:08:59.5]} 23... Nc4 {[%clk
0:06:54.3]} 24. Qa6 {[%clk 0:08:59.8]} 24... Qxa6 {[%clk 0:05:52]} 25. bxa6
{[%clk 0:08:58.7]} 25... Nc6 {[%clk 0:05:50.3]} 26. Bf4 {[%clk 0:07:53.1]} 26...
Ra8 {[%clk 0:05:22.7]} 27. Bxc4 {[%clk 0:07:34.8]} 27... dxc4 {[%clk 0:05:22.8]}
28. Ra4 {[%clk 0:07:36.2]} 28... h5 {[%clk 0:04:26.8]} 29. Bd6 {[%clk
0:07:12.1]} 29... Bxd4 {[%clk 0:01:48.2]} 30. Rxc4 {[%clk 0:07:09.9]} 30... Ne5
{[%clk 0:01:40]} 31. Ra4 {[%clk 0:06:51.6]} 31... Nxf3+ {[%clk 0:01:32.1]} 32.
Kg2 {[%clk 0:06:52.2]} 32... Be5 {[%clk 0:01:24.5]} 33. Bc5 {[%clk 0:06:43.9]}
33... Ne1+ {[%clk 0:01:21.6]} 34. Kf1 {[%clk 0:06:43.6]} 34... Nd3 {[%clk
0:01:22.7]} 35. Be3 {[%clk 0:06:41.8]} 35... Nb2 {[%clk 0:01:21]} 36. Re4 {[%clk
0:06:33.1]} 36... Bxh2 {[%clk 0:00:26.6]} 37. a7 {[%clk 0:06:32.3]} 37... Bb8
{[%clk 0:00:27.3]} 38. axb8=Q+ {[%clk 0:06:23.3]} 38... Rxb8 {[%clk 0:00:28.4]}
39. Rd4 {[%clk 0:06:15.6]} 39... Rc8 {[%clk 0:00:29.3]} 40. Rd7 {[%clk
0:06:04.4]} 40... Nc4 {[%clk 0:00:27.5]} 41. Bd4 {[%clk 0:05:58.3]} 41... e5
{[%clk 0:00:24.2]} 42. Bc3 {[%clk 0:05:56.6]} 42... Kf8 {[%clk 0:00:20.8]} 43.
Kg2 {[%clk 0:05:50.8]} 43... Kg8 {[%clk 0:00:18.7]} 44. Kf3 {[%clk 0:05:48.6]}
44... Nb6 {[%clk 0:00:17.3]} 45. Rb7 {[%clk 0:05:46.6]} 45... Nc4 {[%clk
0:00:17.6]} 46. Ke4 {[%clk 0:05:46.4]} 46... Nd6+ {[%clk 0:00:18.4]} 47. Kxe5
{[%clk 0:05:45.8]} 47... Nxb7 {[%clk 0:00:19.5]} 48. Bd4 {[%clk 0:05:45.8]}
48... Re8+ {[%clk 0:00:19.3]} 0-1

[Event "GrandPrix_29.05"]
[Site "Chess.com"]
[Date "2020.05.29"]
[Round "2"]
[White "Durarbayli"]
[Black "VSanduleac"]
[Result "1-0"]
[WhiteElo "2732"]
[BlackElo "2253"]
[TimeControl "600+2"]
[EndTime "9:51:38 PDT"]
[Termination "Durarbayli won by resignation"]

1. e4 {[%clk 0:09:58.5]} 1... g6 {[%clk 0:09:59.2]} 2. d4 {[%clk 0:09:56.4]}
2... Bg7 {[%clk 0:09:59.8]} 3. Nc3 {[%clk 0:09:46.5]} 3... c6 {[%clk 0:09:59.8]}
4. Nf3 {[%clk 0:08:56.1]} 4... d5 {[%clk 0:09:54.1]} 5. h3 {[%clk 0:08:55.6]}
5... dxe4 {[%clk 0:09:48.4]} 6. Nxe4 {[%clk 0:08:57.5]} 6... Bf5 {[%clk
0:09:49]} 7. Ng3 {[%clk 0:08:52.5]} 7... Be6 {[%clk 0:09:48.3]} 8. Be2 {[%clk
0:08:41.9]} 8... Bd5 {[%clk 0:09:47]} 9. c3 {[%clk 0:08:27.6]} 9... Nf6 {[%clk
0:09:46.6]} 10. O-O {[%clk 0:08:26.9]} 10... O-O {[%clk 0:09:45.4]} 11. Be3
{[%clk 0:07:43.1]} 11... Bxf3 {[%clk 0:09:41.7]} 12. Bxf3 {[%clk 0:07:43.4]}
12... e6 {[%clk 0:09:42.3]} 13. c4 {[%clk 0:07:33.7]} 13... Nbd7 {[%clk
0:09:41.9]} 14. Qb3 {[%clk 0:07:27.9]} 14... Qb6 {[%clk 0:09:37.6]} 15. Rfd1
{[%clk 0:07:21.1]} 15... Qxb3 {[%clk 0:09:24.2]} 16. axb3 {[%clk 0:07:21.7]}
16... a6 {[%clk 0:09:25.6]} 17. Ne2 {[%clk 0:06:53.9]} 17... Rad8 {[%clk
0:09:13.9]} 18. Nc3 {[%clk 0:06:39]} 18... Rfe8 {[%clk 0:08:59.9]} 19. g4 {[%clk
0:06:23.3]} 19... h6 {[%clk 0:08:58.7]} 20. Bg2 {[%clk 0:06:16.3]} 20... Bf8
{[%clk 0:08:51.6]} 21. Bf4 {[%clk 0:05:18.5]} 21... g5 {[%clk 0:08:44.8]} 22.
Bc7 {[%clk 0:05:17.3]} 22... Rc8 {[%clk 0:08:45.1]} 23. Bg3 {[%clk 0:05:18.7]}
23... Bb4 {[%clk 0:08:26.5]} 24. Rd3 {[%clk 0:05:10]} 24... Red8 {[%clk
0:08:21.6]} 25. Rad1 {[%clk 0:05:04.6]} 25... Nb6 {[%clk 0:08:08.9]} 26. f4
{[%clk 0:04:48.3]} 26... Nfd7 {[%clk 0:07:02.5]} 27. fxg5 {[%clk 0:04:19.2]}
27... hxg5 {[%clk 0:07:02.4]} 28. Ne4 {[%clk 0:03:44.8]} 28... Be7 {[%clk
0:06:49.8]} 29. Nd6 {[%clk 0:03:39.9]} 29... Rb8 {[%clk 0:06:43.2]} 30. Ne4
{[%clk 0:03:20]} 30... Rbc8 {[%clk 0:06:42.6]} 31. Rf1 {[%clk 0:03:03.8]} 31...
Nc5 {[%clk 0:06:14.4]} 32. dxc5 {[%clk 0:02:26.6]} 32... Rxd3 {[%clk 0:06:13.7]}
33. cxb6 {[%clk 0:02:27.6]} 33... Rf8 {[%clk 0:06:14.4]} 34. c5 {[%clk
0:01:56.7]} 34... f5 {[%clk 0:06:13.8]} 35. gxf5 {[%clk 0:01:18.7]} 35... exf5
{[%clk 0:06:10.6]} 36. Bd6 {[%clk 0:01:19.3]} 36... Bxd6 {[%clk 0:05:36.9]} 37.
Nxd6 {[%clk 0:01:18.5]} 37... f4 {[%clk 0:05:37.6]} 38. Rf3 {[%clk 0:01:04.1]}
38... Rd2 {[%clk 0:05:14.6]} 39. Rf2 {[%clk 0:01:01.5]} 39... Rd1+ {[%clk
0:05:13.7]} 40. Rf1 {[%clk 0:01:02.5]} 40... Rd3 {[%clk 0:05:12.1]} 41. Nxb7
{[%clk 0:00:52.4]} 41... f3 {[%clk 0:05:12.1]} 42. Na5 {[%clk 0:00:50.4]} 42...
fxg2 {[%clk 0:05:04.3]} 43. Rxf8+ {[%clk 0:00:52.3]} 43... Kxf8 {[%clk
0:05:04.4]} 44. b7 {[%clk 0:00:53.3]} 1-0

[Event "GrandPrix_29.05"]
[Site "Chess.com"]
[Date "2020.05.29"]
[Round "2"]
[White "chess_big_master"]
[Black "aleksandrovaleksei"]
[Result "0-1"]
[WhiteElo "2080"]
[BlackElo "2470"]
[TimeControl "600+2"]
[EndTime "9:51:38 PDT"]
[Termination "aleksandrovaleksei won by resignation"]

1. d4 {[%clk 0:10:01.9]} 1... Nf6 {[%clk 0:09:59]} 2. Nf3 {[%clk 0:10:02.6]}
2... d5 {[%clk 0:09:59.6]} 3. c4 {[%clk 0:10:02.8]} 3... e6 {[%clk 0:10:00.2]}
4. Nc3 {[%clk 0:10:03.5]} 4... Nbd7 {[%clk 0:09:46.5]} 5. Bg5 {[%clk 0:10:00.6]}
5... Bb4 {[%clk 0:09:38.2]} 6. Qb3 {[%clk 0:09:20.7]} 6... c5 {[%clk 0:09:26.9]}
7. cxd5 {[%clk 0:09:13.7]} 7... exd5 {[%clk 0:09:21.7]} 8. e3 {[%clk 0:08:30.1]}
8... Qa5 {[%clk 0:09:13.5]} 9. Rc1 {[%clk 0:07:40.5]} 9... c4 {[%clk 0:08:52.1]}
10. Qc2 {[%clk 0:07:21.7]} 10... Ne4 {[%clk 0:08:07.7]} 11. Be2 {[%clk
0:07:02.5]} 11... Qxa2 {[%clk 0:08:01.6]} 12. O-O {[%clk 0:06:59.3]} 12... Bxc3
{[%clk 0:07:27.4]} 13. bxc3 {[%clk 0:06:59]} 13... Qxc2 {[%clk 0:07:28.5]} 14.
Rxc2 {[%clk 0:07:00.1]} 14... Nb6 {[%clk 0:07:23.2]} 15. Ra1 {[%clk 0:06:35.8]}
15... Bd7 {[%clk 0:06:40.1]} 16. Bf4 {[%clk 0:06:25.1]} 16... Na4 {[%clk
0:06:38.5]} 17. Ne5 {[%clk 0:06:20.6]} 17... Nexc3 {[%clk 0:06:12.4]} 18. Nxd7
{[%clk 0:06:05.5]} 18... Kxd7 {[%clk 0:06:12.2]} 19. Bg4+ {[%clk 0:06:00.6]}
19... Kc6 {[%clk 0:06:13]} 20. Ra3 {[%clk 0:05:53.1]} 20... b5 {[%clk 0:06:13]}
21. Rcxc3 {[%clk 0:05:49.5]} 21... Nxc3 {[%clk 0:06:12.2]} 22. Rxc3 {[%clk
0:05:50.4]} 22... a5 {[%clk 0:06:08.9]} 23. e4 {[%clk 0:05:44.4]} 23... dxe4
{[%clk 0:06:08.5]} 24. f3 {[%clk 0:05:26.7]} 24... Kd5 {[%clk 0:06:06.9]} 25.
Be5 {[%clk 0:05:21.6]} 25... f6 {[%clk 0:05:35.6]} 26. fxe4+ {[%clk 0:05:21.3]}
26... Kxe4 {[%clk 0:05:36.6]} 27. Bf3+ {[%clk 0:05:14.6]} 27... Kf5 {[%clk
0:05:37.7]} 28. Bxa8 {[%clk 0:03:48.5]} 28... Rxa8 {[%clk 0:05:05.6]} 29. Bd6
{[%clk 0:03:24]} 29... Ke4 {[%clk 0:05:03.3]} 30. Bc5 {[%clk 0:03:21]} 30... Kd5
{[%clk 0:05:03.7]} 31. Kf2 {[%clk 0:03:16.2]} 31... b4 {[%clk 0:05:04.4]} 32.
Rc1 {[%clk 0:03:11.5]} 32... c3 {[%clk 0:05:04.7]} 33. Ke2 {[%clk 0:02:18.6]}
33... Kc4 {[%clk 0:05:03.8]} 34. Kd1 {[%clk 0:02:18]} 34... b3 {[%clk
0:04:44.1]} 35. Ba3 {[%clk 0:01:57.5]} 35... Kd3 {[%clk 0:04:43.1]} 36. Ra1
{[%clk 0:01:50.8]} 36... Rb8 {[%clk 0:04:28.3]} 37. d5 {[%clk 0:00:59.2]} 37...
b2 {[%clk 0:04:26.4]} 38. Bxb2 {[%clk 0:00:58.7]} 38... cxb2 {[%clk 0:04:27.1]}
39. Rb1 {[%clk 0:00:59.4]} 39... a4 {[%clk 0:04:27.6]} 0-1

[Event "GrandPrix_29.05"]
[Site "Chess.com"]
[Date "2020.05.29"]
[Round "2"]
[White "MirMan90"]
[Black "SavelievAlexei"]
[Result "1-0"]
[WhiteElo "2701"]
[BlackElo "2304"]
[TimeControl "600+2"]
[EndTime "9:51:42 PDT"]
[Termination "MirMan90 won by resignation"]

1. e4 {[%clk 0:10:01.9]} 1... c5 {[%clk 0:09:58.8]} 2. Nf3 {[%clk 0:10:02.5]}
2... e6 {[%clk 0:10:00.1]} 3. d4 {[%clk 0:10:03.1]} 3... cxd4 {[%clk 0:10:02]}
4. Nxd4 {[%clk 0:10:04.5]} 4... a6 {[%clk 0:10:03.8]} 5. Nc3 {[%clk 0:10:04]}
5... Qc7 {[%clk 0:10:02.8]} 6. Bd3 {[%clk 0:10:04.1]} 6... Nf6 {[%clk
0:09:57.8]} 7. f4 {[%clk 0:10:01.8]} 7... d6 {[%clk 0:09:55.3]} 8. Qe2 {[%clk
0:09:58.8]} 8... Nbd7 {[%clk 0:09:49.5]} 9. O-O {[%clk 0:09:50.9]} 9... Be7
{[%clk 0:09:37.6]} 10. Kh1 {[%clk 0:09:49.8]} 10... b6 {[%clk 0:09:33.2]} 11.
Bd2 {[%clk 0:09:46.6]} 11... Bb7 {[%clk 0:09:32.4]} 12. Rae1 {[%clk 0:09:43.3]}
12... Qc5 {[%clk 0:05:33.4]} 13. Nb3 {[%clk 0:07:50.2]} 13... Qh5 {[%clk
0:05:32.3]} 14. Rf3 {[%clk 0:07:40.6]} 14... Nc5 {[%clk 0:04:06.3]} 15. Qf1
{[%clk 0:07:39.9]} 15... Nxd3 {[%clk 0:03:09.5]} 16. cxd3 {[%clk 0:07:38.6]}
16... h6 {[%clk 0:02:56.7]} 17. Rh3 {[%clk 0:07:02.6]} 17... Qg6 {[%clk
0:02:52.2]} 18. Nd4 {[%clk 0:06:53.4]} 18... Ng4 {[%clk 0:02:15.3]} 19. Qe2
{[%clk 0:06:21.7]} 19... h5 {[%clk 0:02:08.1]} 20. Nf3 {[%clk 0:05:15.3]} 20...
h4 {[%clk 0:00:52.5]} 21. d4 {[%clk 0:04:25.3]} 21... Rc8 {[%clk 0:00:44.4]} 22.
d5 {[%clk 0:04:14.5]} 22... Rxc3 {[%clk 0:00:40.9]} 23. Bxc3 {[%clk 0:04:11.2]}
23... a5 {[%clk 0:00:22.7]} 24. Qb5+ {[%clk 0:04:03.2]} 24... Kf8 {[%clk
0:00:19.8]} 25. Qxb6 {[%clk 0:04:03.7]} 25... Nf2+ {[%clk 0:00:20.6]} 26. Qxf2
{[%clk 0:04:04.1]} 1-0

[Event "GrandPrix_29.05"]
[Site "Chess.com"]
[Date "2020.05.29"]
[Round "2"]
[White "kirillshevchenko"]
[Black "cukus"]
[Result "1-0"]
[WhiteElo "2777"]
[BlackElo "2205"]
[TimeControl "600+2"]
[EndTime "9:51:46 PDT"]
[Termination "kirillshevchenko won by checkmate"]

1. e4 {[%clk 0:10:01.9]} 1... c6 {[%clk 0:09:59.8]} 2. d4 {[%clk 0:10:02.5]}
2... d5 {[%clk 0:09:59]} 3. e5 {[%clk 0:10:02.8]} 3... Bf5 {[%clk 0:09:49.2]} 4.
h4 {[%clk 0:10:03.3]} 4... h6 {[%clk 0:09:46.5]} 5. g4 {[%clk 0:09:58.8]} 5...
Bd7 {[%clk 0:09:47.2]} 6. c4 {[%clk 0:09:54.6]} 6... h5 {[%clk 0:09:29.4]} 7.
gxh5 {[%clk 0:08:23.5]} 7... e6 {[%clk 0:09:16.5]} 8. Nc3 {[%clk 0:08:19.5]}
8... Ne7 {[%clk 0:09:13.4]} 9. Bg5 {[%clk 0:06:45.3]} 9... Qb6 {[%clk
0:09:04.5]} 10. c5 {[%clk 0:06:26.9]} 10... Qc7 {[%clk 0:07:45.6]} 11. Bd3
{[%clk 0:06:12.9]} 11... Nf5 {[%clk 0:07:20.8]} 12. Bxf5 {[%clk 0:05:55.8]}
12... exf5 {[%clk 0:07:20.9]} 13. Nh3 {[%clk 0:05:49.4]} 13... Be6 {[%clk
0:06:58]} 14. Nf4 {[%clk 0:05:18.9]} 14... Be7 {[%clk 0:06:31.6]} 15. Nxe6
{[%clk 0:04:54.4]} 15... fxe6 {[%clk 0:06:31.3]} 16. Ne2 {[%clk 0:04:55.8]}
16... Nd7 {[%clk 0:05:51.3]} 17. Bxe7 {[%clk 0:04:33.7]} 17... Kxe7 {[%clk
0:05:50.7]} 18. Nf4 {[%clk 0:04:33.8]} 18... Kf7 {[%clk 0:04:49.3]} 19. Rg1
{[%clk 0:04:15]} 19... Rh7 {[%clk 0:04:10.3]} 20. Qf3 {[%clk 0:03:45.5]} 20...
b6 {[%clk 0:03:47.9]} 21. Rg6 {[%clk 0:03:35.3]} 21... bxc5 {[%clk 0:03:28.1]}
22. Nxe6 {[%clk 0:03:33]} 22... Qa5+ {[%clk 0:03:23.4]} 23. Kf1 {[%clk 0:03:34]}
23... Nf8 {[%clk 0:02:23.1]} 24. Ng5+ {[%clk 0:03:30.1]} 24... Kg8 {[%clk
0:02:23]} 25. Nxh7 {[%clk 0:03:30.8]} 25... Kxh7 {[%clk 0:02:08.9]} 26. Qxf5
{[%clk 0:03:08.7]} 26... Nxg6 {[%clk 0:01:54]} 27. hxg6+ {[%clk 0:03:10.6]}
27... Kg8 {[%clk 0:01:49.4]} 28. Qh5 {[%clk 0:03:10.6]} 28... Qd8 {[%clk
0:01:34.1]} 29. Qh7+ {[%clk 0:03:09.7]} 29... Kf8 {[%clk 0:01:34.3]} 30. Qh8+
{[%clk 0:03:10.9]} 30... Ke7 {[%clk 0:01:35.8]} 31. Qxg7+ {[%clk 0:03:12]} 31...
Ke6 {[%clk 0:01:29.3]} 32. Qf7# {[%clk 0:03:12.9]} 1-0

[Event "GrandPrix_29.05"]
[Site "Chess.com"]
[Date "2020.05.29"]
[Round "2"]
[White "Salnaa"]
[Black "TimofeevAr"]
[Result "0-1"]
[WhiteElo "2135"]
[BlackElo "2456"]
[TimeControl "600+2"]
[EndTime "9:51:49 PDT"]
[Termination "TimofeevAr won by resignation"]

1. d4 {[%clk 0:10:01.9]} 1... Nf6 {[%clk 0:09:56.3]} 2. c4 {[%clk 0:10:01]} 2...
g6 {[%clk 0:09:57.1]} 3. Nc3 {[%clk 0:10:01.2]} 3... d5 {[%clk 0:09:57.9]} 4.
Nf3 {[%clk 0:10:01.3]} 4... Bg7 {[%clk 0:09:58.3]} 5. Qb3 {[%clk 0:10:02.2]}
5... e6 {[%clk 0:09:51.3]} 6. cxd5 {[%clk 0:09:53.6]} 6... exd5 {[%clk
0:09:51.1]} 7. Bf4 {[%clk 0:09:53.4]} 7... O-O {[%clk 0:09:48.8]} 8. e3 {[%clk
0:09:48.2]} 8... c6 {[%clk 0:09:48.4]} 9. Be2 {[%clk 0:09:39.7]} 9... Nbd7
{[%clk 0:09:40.5]} 10. h3 {[%clk 0:09:37.8]} 10... Re8 {[%clk 0:09:40.7]} 11.
O-O {[%clk 0:09:37.7]} 11... Nf8 {[%clk 0:09:31.4]} 12. Rfc1 {[%clk 0:08:45.4]}
12... Ne6 {[%clk 0:09:28.6]} 13. Bg3 {[%clk 0:08:24.2]} 13... Bf8 {[%clk
0:09:18.8]} 14. a3 {[%clk 0:07:57.5]} 14... Bd6 {[%clk 0:09:16.5]} 15. Bxd6
{[%clk 0:07:45.4]} 15... Qxd6 {[%clk 0:09:15.9]} 16. Qc2 {[%clk 0:07:43.5]}
16... a5 {[%clk 0:08:58.6]} 17. Na4 {[%clk 0:07:39.7]} 17... Ng7 {[%clk
0:08:57.5]} 18. Nc5 {[%clk 0:07:16.1]} 18... Qe7 {[%clk 0:08:47]} 19. b4 {[%clk
0:07:12.4]} 19... Bf5 {[%clk 0:08:43.5]} 20. Qb2 {[%clk 0:07:05.4]} 20... axb4
{[%clk 0:08:42.3]} 21. axb4 {[%clk 0:07:04.3]} 21... Rxa1 {[%clk 0:08:40.4]} 22.
Rxa1 {[%clk 0:07:06.2]} 22... b6 {[%clk 0:08:40.3]} 23. Nd3 {[%clk 0:06:53.4]}
23... Bxd3 {[%clk 0:08:26.2]} 24. Bxd3 {[%clk 0:06:55.3]} 24... Ne6 {[%clk
0:08:26.6]} 25. Qc3 {[%clk 0:06:44.6]} 25... c5 {[%clk 0:08:22.9]} 26. bxc5
{[%clk 0:06:44.6]} 26... bxc5 {[%clk 0:08:23.6]} 27. dxc5 {[%clk 0:06:35.2]}
27... Nxc5 {[%clk 0:08:23.1]} 28. Ra5 {[%clk 0:06:10.5]} 28... Nxd3 {[%clk
0:07:45.7]} 29. Qxd3 {[%clk 0:06:10.1]} 29... Qb4 {[%clk 0:07:41.4]} 30. Ra1
{[%clk 0:05:51.2]} 30... Rb8 {[%clk 0:07:25.8]} 31. Qd4 {[%clk 0:05:46.5]} 31...
Qxd4 {[%clk 0:07:13]} 32. Nxd4 {[%clk 0:05:48.4]} 32... Ne4 {[%clk 0:07:14.3]}
33. Nc6 {[%clk 0:05:29]} 33... Rb2 {[%clk 0:07:08]} 34. f3 {[%clk 0:05:16.3]}
34... Nc3 {[%clk 0:07:05.2]} 35. Ra5 {[%clk 0:04:15.8]} 35... Kg7 {[%clk
0:06:52.7]} 36. Ne7 {[%clk 0:03:39.5]} 36... Rd2 {[%clk 0:06:24.4]} 37. Rc5
{[%clk 0:03:09.3]} 37... Rd3 {[%clk 0:05:49.8]} 38. Kf2 {[%clk 0:03:10]} 38...
Kf8 {[%clk 0:05:41.4]} 39. Rc7 {[%clk 0:02:58.6]} 39... Nd1+ {[%clk 0:05:36.1]}
40. Ke2 {[%clk 0:02:49.1]} 40... Rxe3+ {[%clk 0:05:36.9]} 41. Kxd1 {[%clk
0:02:50.4]} 41... Rxe7 {[%clk 0:05:37.8]} 42. Rc8+ {[%clk 0:02:50.4]} 42... Kg7
{[%clk 0:05:31.5]} 43. Rd8 {[%clk 0:02:51.5]} 43... Re5 {[%clk 0:05:32.3]} 44.
Kd2 {[%clk 0:02:49.1]} 44... h5 {[%clk 0:05:28]} 45. g3 {[%clk 0:02:34.9]} 45...
Kf6 {[%clk 0:05:20.3]} 46. Kd3 {[%clk 0:02:12.2]} 46... Ke7 {[%clk 0:05:13.3]}
47. Kd4 {[%clk 0:02:04.2]} 47... Rf5 {[%clk 0:05:10.8]} 48. Rxd5 {[%clk
0:01:35.5]} 48... Rxf3 {[%clk 0:05:10.9]} 49. Rg5 {[%clk 0:01:06.7]} 49... Kf6
{[%clk 0:05:09.7]} 50. h4 {[%clk 0:01:07.7]} 50... Rf5 {[%clk 0:05:09.7]} 0-1